bitfinex/quotes_ETHUSD_20240915
["timestamp","ask_amount","ask_price","bid_price","bid_amount"]
[1726422383689,6.6016,2384.3,2384.1,1.83538024]
[1726422384024,6.6016,2384.3,2384.0,0.87967005]
[1726422384183,6.6016,2384.3,2384.1,1.8353617]
[1726422384379,6.6016,2384.3,2384.0,0.87967005]
[1726422384688,10.79586,2384.3,2384.1,1.83541435]
[1726422384901,10.79586,2384.3,2384.0,0.87967005]
[1726422384902,6.6016,2384.3,2384.0,0.87967005]
[1726422385109,6.6016,2384.3,2384.1,1.83540549]
[1726422385295,6.6016,2384.3,2384.0,0.87967005]
[1726422385495,4.74427,2384.2,2384.1,1.83570557]
[1726422385682,4.74427,2384.2,2383.9,0.87967005]
[1726422385896,4.74427,2384.2,2384.0,1.83574063]
[1726422386199,4.74427,2384.2,2384.1,1.83597621]
[1726422386529,4.74427,2384.2,2384.1,1.83603321]
[1726422386727,0.55,2384.2,2384.1,1.83603321]
[1726422388008,5.9868094,2384.2,2384.1,1.83603321]
[1726422389818,5.9868094,2384.2,2383.9,1.3174423]
[1726422389819,4.19463,2384.0,2383.9,0.87967005]
[1726422389996,4.19463,2384.0,2383.9,2.71645547]
[1726422389997,5.45035394,2384.0,2383.9,2.71645547]
[1726422390196,4.80827779,2384.0,2383.9,2.71645547]
[1726422390618,7.18407779,2384.0,2383.9,2.71645547]
[1726422390825,15.73004818,2384.0,2383.9,1.83678542]
[1726422391021,4.74498,2383.8,2383.7,0.87967005]
[1726422391397,4.80854622,2383.8,2383.7,0.87967005]
[1726422391753,0.61356622,2383.8,2383.7,0.87967005]
[1726422391900,0.06356622,2383.8,2383.7,0.87967005]
[1726422392096,6.57043,2384.0,2383.7,0.87967005]
[1726422392295,0.06352849,2383.8,2383.7,3.37917005]
[1726422392539,4.19438,2384.2,2383.7,8.54316333]
[1726422392848,0.06352849,2383.8,2383.7,8.10385141]
[1726422392997,0.55,2384.1,2383.7,9.72967901]
[1726422393339,0.55,2384.1,2383.8,0.43929064]
[1726422393512,0.06352476,2384.0,2383.7,13.92482901]
[1726422393840,0.06352476,2384.0,2383.8,2.0074323]
[1726422394172,11.56404,2384.4,2383.8,2.0074323]
[1726422394173,11.56404,2384.4,2383.8,5.84700883]
[1726422394443,6.56962,2384.5,2384.0,4.19463]
[1726422394606,2.3758,2384.5,2384.0,5.19879388]
[1726422394813,4.19366,2384.6,2384.1,2.58338604]
[1726422395036,9.7458,2384.7,2384.2,4.97246799]
[1726422395037,7.37,2384.7,2384.2,4.97246799]
[1726422395197,7.37,2384.7,2384.2,5.05634841]
[1726422395616,7.37,2384.7,2384.3,4.19396]
[1726422395800,4.19294,2385.0,2384.4,6.77717407]
[1726422396139,9.7458,2385.1,2384.5,4.19373]
[1726422396312,9.7458,2385.1,2384.5,4.27759592]
[1726422396516,4.19292,2385.0,2384.4,10.88712]
[1726422396701,4.19292,2385.0,2384.4,7.97733188]
[1726422396894,4.19292,2385.0,2384.4,8.06119931]
[1726422397811,4.19292,2385.0,2384.4,7.97733188]
[1726422398243,0.55,2384.9,2384.2,4.19416]
[1726422398544,0.55,2384.9,2384.2,6.69366]
[1726422398545,6.56902,2384.8,2384.2,6.69366]
[1726422398748,6.56902,2384.8,2384.2,7.782486]
[1726422399053,9.7458,2385.1,2384.4,4.19387]
[1726422399252,4.1929,2385.0,2384.4,4.19387]
[1726422399419,1.39387,2384.9,2384.4,4.19387]
[1726422399609,4.1929,2385.0,2384.4,4.19387]
[1726422399950,13.93851,2385.1,2384.4,4.19387]
[1726422400255,13.93851,2385.1,2384.5,4.19372]
[1726422401347,18.13135,2385.1,2384.6,2.4995]
[1726422401723,4.19297,2385.0,2384.4,4.19387]
[1726422401950,4.19297,2385.0,2384.4,6.69337]
[1726422402120,18.87026979,2385.1,2384.4,10.88717]
[1726422402448,11.56271,2385.1,2384.6,2.4995]
[1726422403540,11.56271,2385.1,2384.6,6.69306]
[1726422403742,11.56271,2385.1,2384.6,2.4995]
[1726422403909,15.7555,2385.1,2384.6,2.4995]
[1726422404312,4.19271,2385.1,2384.6,2.4995]
[1726422404649,8.38552,2385.1,2384.6,2.4995]
[1726422405146,0.0628093,2385.0,2384.6,2.4995]
[1726422406357,0.0628093,2385.0,2384.6,3.588208]
[1726422406659,4.2558093,2385.0,2384.6,3.588208]
[1726422406886,2.3758,2384.9,2384.5,2.4995]
[1726422407242,0.06277217,2384.8,2384.5,2.4995]
[1726422408246,4.193,2385.0,2384.5,2.4995]
[1726422408449,0.06273825,2384.7,2384.6,1.08871]
[1726422408649,4.193,2385.0,2384.6,1.08871]
[1726422409193,6.56851,2385.1,2384.6,1.08871]
[1726422409194,0.06281292,2384.9,2384.6,1.08871]
[1726422409490,6.56851,2385.1,2384.7,0.778195]
[1726422409670,0.0622957,2384.8,2384.7,0.778195]
[1726422409878,8.3855,2385.1,2384.7,0.778195]
[1726422410058,0.0622957,2384.8,2384.7,3.193995]
[1726422410597,4.19271,2385.1,2384.7,2.4158]
[1726422410762,0.06231957,2384.8,2384.7,2.4158]
[1726422411091,4.19271,2385.1,2384.7,2.4158]
[1726422411501,0.06238744,2385.0,2384.7,2.4158]
[1726422413210,0.06238744,2385.0,2384.7,3.16060064]
[1726422413379,7.37,2385.5,2385.0,4.19274]
[1726422413696,2.2788,2385.6,2385.2,2.4158]
[1726422413856,6.47072,2385.6,2385.2,2.4158]
[1726422414454,4.2310861,2385.7,2385.2,2.4158]
[1726422414669,4.2310861,2385.7,2385.2,6.60831]
[1726422414882,4.2310861,2385.7,2385.2,6.60821]
[1726422415211,0.0393461,2385.7,2385.3,6.60802]
[1726422415507,0.0393461,2385.7,2385.5,4.19199]
[1726422416600,0.0393461,2385.7,2385.6,2.4158]
[1726422418108,0.0393461,2385.7,2385.4,2.4158]
[1726422418273,0.0393461,2385.7,2385.4,3.1846115]
[1726422419156,0.0393461,2385.7,2385.4,2.4158]
[1726422419366,2.3181461,2385.7,2385.4,2.4158]
[1726422419893,2.3181461,2385.7,2385.2,6.60831]
[1726422420105,0.05928665,2385.6,2385.2,6.60831]
[1726422420406,0.05928665,2385.6,2385.2,7.688401]
[1726422421804,0.05928665,2385.6,2385.2,7.688351]
[1726422423285,0.05928665,2385.6,2385.2,3.495891]
[1726422423484,0.05928665,2385.6,2385.2,7.688391]
[1726422424597,2.2788,2385.5,2385.2,1.080091]
[1726422424797,6.53025205,2385.5,2384.9,4.19289]
[1726422424995,6.53025205,2385.5,2385.0,0.660869]
[1726422425747,6.53025205,2385.5,2385.0,4.853639]
[1726422426899,6.53025205,2385.5,2385.1,2.4158]
[1726422427646,6.53025205,2385.5,2385.0,0.660869]
[1726422427848,10.72238205,2385.5,2385.0,0.660869]
[1726422428151,2.8288,2385.4,2384.8,0.87749626]
[1726422428441,2.8288,2385.4,2384.7,6.60909]
[1726422428648,0.05925994,2385.3,2384.7,6.60909]
[1726422428814,0.05925994,2385.3,2384.8,1.81651709]
[1726422429006,0.05925994,2385.3,2384.7,6.60909]
[1726422429245,0.05925994,2385.3,2384.8,1.04865863]
[1726422429701,0.05925994,2385.3,2384.8,5.24185863]
[1726422430330,0.05925994,2385.3,2384.9,1.81686849]
[1726422430526,0.05925994,2385.3,2384.8,6.11935489]
[1726422430739,0.05925994,2385.3,2384.9,3.47962451]
[1726422431055,0.05925994,2385.3,2384.9,1.64645907]
[1726422433316,0.05925994,2385.3,2385.0,1.8347317]
[1726422433519,0.05925994,2385.3,2385.1,1.83476562]
[1726422433724,0.05925994,2385.3,2384.9,5.07038626]
[1726422433918,0.05925994,2385.3,2385.1,2.3855]
[1726422436361,0.05925994,2385.3,2385.2,1.83652486]
[1726422436535,0.05925994,2385.3,2385.2,1.83806455]
[1726422436909,4.19202,2385.5,2385.2,1.83806455]
[1726422437111,0.0551297,2385.4,2385.1,3.26299626]
[1726422437445,4.19202,2385.5,2385.2,1.83807859]
[1726422437609,4.19202,2385.5,2385.1,3.26299626]
[1726422437804,0.0551297,2385.4,2385.2,1.83817499]
[1726422438020,0.0551297,2385.4,2385.3,1.83815279]
[1726422438351,0.0551297,2385.4,2385.3,1.83813768]
[1726422439154,0.0393461,2385.7,2385.3,6.99181099]
[1726422439453,0.0393461,2385.7,2385.4,1.83813768]
[1726422439662,0.0393461,2385.7,2385.3,5.1536722]
[1726422439956,0.0393461,2385.7,2385.4,1.82561946]
[1726422440138,0.0393461,2385.7,2385.5,2.3855]
[1726422440337,0.0393461,2385.7,2385.6,1.82555431]
[1726422440524,0.0393461,2385.7,2385.6,1.82541534]
[1726422441250,0.0393461,2385.7,2385.6,1.82541644]
[1726422442137,0.0393461,2385.7,2385.4,5.89919987]
[1726422442318,0.0393461,2385.7,2385.5,1.82528782]
[1726422442512,0.0393461,2385.7,2385.5,1.56184721]
[1726422447028,0.0393461,2385.7,2385.6,2.3855]
[1726422447236,0.0393461,2385.7,2385.6,9.27853391]
[1726422447566,0.0393461,2385.7,2385.6,9.24641267]
[1726422447732,0.0393461,2385.7,2385.6,8.36809265]
[1726422447928,0.0393461,2385.7,2385.6,10.17123176]
[1726422448134,0.0393461,2385.7,2385.6,10.08740533]
[1726422448334,0.0393461,2385.7,2385.6,13.83509243]
[1726422448541,0.0393461,2385.7,2385.6,9.64328243]
[1726422448749,0.0393461,2385.7,2385.6,5.89559533]
[1726422448952,0.0393461,2385.7,2385.6,6.77388667]
[1726422449149,0.0393461,2385.7,2385.6,4.42133167]
[1726422449368,0.0393461,2385.7,2385.6,2.70201899]
[1726422449567,0.0393461,2385.7,2385.6,1.82372765]
[1726422450241,0.09326165,2385.7,2385.6,1.82372765]
[1726422452546,0.09326165,2385.7,2385.6,9.36482899]
[1726422452746,0.09326165,2385.7,2385.6,13.89768593]
[1726422454390,0.09326165,2385.7,2385.6,13.8996009]
[1726422454549,0.09326165,2385.7,2385.6,18.0914109]
[1726422454750,0.09326165,2385.7,2385.6,13.89949412]
[1726422455372,0.09326165,2385.7,2385.6,13.90021879]
[1726422455747,0.09326165,2385.7,2385.6,12.5821662]
[1726422455948,0.09326165,2385.7,2385.6,18.97077718]
[1726422455949,0.0393461,2385.7,2385.6,18.97077718]
[1726422456149,0.0393461,2385.7,2385.6,26.99275419]
[1726422457903,0.0393461,2386.4,2386.1,4.19079]
[1726422458062,0.0393461,2386.4,2386.2,1.82445232]
[1726422458254,0.0393461,2386.4,2386.3,1.82445232]
[1726422458449,0.0393461,2386.4,2386.1,7.54022277]
[1726422458664,0.0393461,2386.4,2386.2,2.69668763]
[1726422459002,0.0393461,2386.4,2386.3,8.56363236]
[1726422459332,0.0393461,2386.4,2386.3,16.49593374]
[1726422459476,0.0393461,2386.4,2386.3,16.49519404]
[1726422459677,0.0393461,2386.4,2386.3,16.4951854]
[1726422459878,0.0393461,2386.4,2386.3,19.99325173]
[1726422460084,0.0393461,2386.4,2386.3,18.33716647]
[1726422460383,0.0393461,2386.4,2386.3,16.14237916]
[1726422460553,0.0393461,2386.4,2386.3,17.89738017]
[1726422460755,0.0393461,2386.4,2386.3,16.14237916]
[1726422461154,0.0393461,2386.4,2386.3,17.89734954]
[1726422461387,0.0393461,2386.4,2386.3,16.14237916]
[1726422461594,0.0393461,2386.4,2386.3,17.89634017]
[1726422462475,0.0393461,2386.4,2386.3,17.45724807]
[1726422462669,0.0393461,2386.4,2386.3,16.14237916]
[1726422463096,0.0393461,2386.4,2386.3,17.45723754]
[1726422463426,0.0393461,2386.4,2386.3,25.08692017]
[1726422463606,0.0393461,2387.2,2387.0,6.66023]
[1726422463770,0.0393461,2387.2,2386.9,4.18953]
[1726422463771,2.3454,2387.1,2386.9,4.18953]
[1726422463975,2.3454,2387.1,2386.8,0.87602427]
[1726422463976,2.3454,2387.1,2386.6,5.06597427]
[1726422464223,2.3454,2387.1,2386.6,5.66035563]
[1726422464437,2.3454,2387.1,2386.7,1.81374034]
[1726422464591,2.3454,2387.1,2386.8,4.18959]
[1726422465275,0.04765009,2387.0,2386.8,4.18959]
[1726422465476,0.04765009,2387.0,2386.9,10.93384232]
[1726422465680,0.04765009,2387.0,2386.9,10.85006]
[1726422465901,0.0393461,2387.2,2387.1,4.18918]
[1726422466287,0.08711874,2387.2,2387.1,4.18918]
[1726422466495,0.0393461,2387.2,2387.1,5.70926704]
[1726422466713,0.08711874,2387.2,2387.1,5.70926704]
[1726422466916,0.0393461,2387.2,2387.1,5.70926704]
[1726422467120,0.08711874,2387.2,2387.1,14.3335568]
[1726422467332,0.0393461,2387.2,2387.1,14.24978743]
[1726422467529,0.08707822,2387.2,2387.1,14.24978743]
[1726422467685,0.0393461,2387.2,2387.1,14.24978743]
[1726422467881,0.08716471,2387.2,2387.1,14.24978743]
[1726422468214,0.08716471,2387.2,2387.1,9.89844704]
[1726422469091,0.08716471,2387.2,2387.1,5.70926704]
[1726422469351,0.08716471,2387.2,2387.1,5.79303448]
[1726422469680,0.08716471,2387.2,2387.1,5.70926704]
[1726422471115,0.08716471,2387.2,2387.1,9.89844704]
[1726422475215,0.08716471,2387.2,2387.1,5.70926704]
[1726422477817,0.08716471,2387.2,2387.1,9.89844704]
[1726422478019,0.08716471,2387.2,2387.1,8.37836]
[1726422478226,0.08716471,2387.2,2387.1,4.18918]
[1726422478465,0.08716471,2387.2,2387.1,8.46212785]
[1726422478667,0.08716471,2387.2,2387.1,10.82416]
[1726422478831,0.08716471,2387.2,2387.1,12.76065304]
[1726422479032,0.0393461,2387.2,2387.1,12.76065304]
[1726422479575,0.0393461,2387.2,2387.1,24.30117343]
[1726422479861,2.3245,2387.8,2387.4,4.18855]
[1726422480225,0.04820362,2387.7,2387.4,8.37711]
[1726422480530,2.3245,2387.8,2387.4,5.026261]
[1726422480733,0.04820362,2387.7,2387.4,5.026261]
[1726422480958,2.3245,2387.8,2387.4,9.214791]
[1726422481168,0.04820362,2387.7,2387.4,4.18854]
[1726422481374,2.3245,2387.8,2387.4,4.18854]
[1726422481675,0.04816977,2387.6,2387.4,4.607394]
[1726422481819,2.3245,2387.8,2387.4,4.607394]
[1726422482022,0.04813592,2387.5,2387.4,4.607394]
[1726422482265,2.3245,2387.8,2387.4,4.607394]
[1726422482470,2.3245,2387.8,2387.1,7.38229304]
[1726422482471,2.3245,2387.8,2387.1,1.93649304]
[1726422482639,4.2271661,2387.9,2387.0,0.87602427]
[1726422482640,2.3245,2387.4,2387.0,4.18925]
[1726422482980,0.04826666,2387.3,2387.1,4.18916]
[1726422483138,0.04826666,2387.3,2387.2,0.418916]
[1726422483889,0.04826666,2387.3,2386.9,4.18942]
[1726422484171,0.04826666,2387.3,2386.9,4.1894]
[1726422484325,0.04826666,2387.3,2387.0,4.18931]
[1726422488143,0.04826666,2387.3,2386.9,8.37881]
[1726422488979,0.04826666,2387.3,2386.9,8.37883]
[1726422489190,0.04826666,2387.3,2386.9,9.64739508]
[1726422489440,0.04826666,2387.3,2386.9,5.45796508]
[1726422489599,0.04826666,2387.3,2387.0,4.18934]
[1726422491852,0.04826666,2387.3,2386.9,5.45796508]
[1726422492072,0.04826666,2387.3,2386.9,9.64740508]
[1726422492294,0.04826666,2387.3,2386.9,9.64739508]
[1726422492457,0.04826666,2387.3,2386.9,8.37883]
[1726422492652,0.04826666,2387.3,2387.0,4.18931]
[1726422494910,0.04826666,2387.3,2386.9,5.06542427]
[1726422495207,0.04826666,2387.3,2386.9,8.37881]
[1726422495496,0.04826666,2387.3,2387.0,1.7984996]
[1726422495674,0.04826666,2387.3,2386.9,9.25483427]
[1726422495876,0.04826666,2387.3,2387.0,1.79849609]
[1726422496079,0.04826666,2387.3,2386.9,5.06542427]
[1726422496294,0.04826666,2387.3,2387.0,1.79861651]
[1726422496514,0.04826666,2387.3,2386.9,9.25486427]
[1726422496815,0.04826666,2387.3,2387.0,1.79932183]
[1726422496999,0.04826666,2387.3,2386.9,5.06542427]
[1726422497188,0.04826666,2387.3,2387.0,1.79931862]
[1726422497388,0.04826666,2387.3,2386.9,9.25485427]
[1726422497591,0.04826666,2387.3,2387.0,1.80025117]
[1726422497902,0.04826666,2387.3,2386.9,9.25485427]
[1726422498062,0.04826666,2387.3,2387.0,1.80023699]
[1726422498262,0.04826666,2387.3,2386.9,6.64059785]
[1726422498559,0.04826666,2387.3,2387.0,2.67638965]
[1726422498764,0.04826666,2387.3,2387.1,1.80117198]
[1726422499065,0.04826666,2387.3,2387.0,0.87602427]
[1726422499288,0.04826666,2387.3,2387.1,1.80126726]
[1726422499559,0.04826666,2387.3,2387.0,0.87602427]
[1726422499805,0.04826666,2387.3,2387.1,1.79126749]
[1726422499999,0.04826666,2387.3,2387.0,0.87602427]
[1726422500202,0.04826666,2387.3,2387.1,1.79126004]
[1726422500374,0.04826666,2387.3,2387.0,0.87602427]
[1726422500577,0.04826666,2387.3,2387.1,1.79229616]
[1726422500783,0.04826666,2387.3,2387.0,0.87602427]
[1726422500784,8.37836,2387.1,2387.0,0.87602427]
[1726422500992,2.3386,2387.0,2386.7,0.87602427]
[1726422501277,2.3386,2387.0,2386.8,1.79247057]
[1726422501488,2.3386,2387.0,2386.7,0.87602427]
[1726422501489,0.0463254,2386.9,2386.7,0.87602427]
[1726422501695,2.3386,2387.0,2386.8,1.7936448]
[1726422501915,2.3386,2386.8,2386.6,0.87602427]
[1726422502105,2.3386,2386.8,2386.7,1.79367501]
[1726422502304,6.68994039,2386.8,2386.7,1.79367501]
[1726422502622,6.68994039,2386.8,2386.5,0.87602427]
[1726422502623,9.73778873,2386.8,2386.5,0.87602427]
[1726422502827,6.52856,2386.7,2386.6,1.79450201]
[1726422503129,6.52856,2386.7,2386.6,1.79452856]
[1726422503426,6.52856,2386.7,2386.4,0.87602427]
[1726422503587,6.52856,2386.7,2386.5,2.67112532]
[1726422503771,4.35134039,2386.6,2386.4,0.87602427]
[1726422504088,6.52898,2386.5,2386.3,0.87602427]
[1726422504293,2.3386,2386.5,2386.2,0.87602427]
[1726422504470,2.3386,2386.5,2386.3,2.67073335]
[1726422504675,6.52883,2386.5,2386.4,1.79470908]
[1726422505275,6.52883,2386.5,2386.2,0.87602427]
[1726422505476,6.52883,2386.5,2386.3,1.79486688]
[1726422505677,4.19047,2386.4,2386.2,0.87602427]
[1726422505992,4.35134039,2386.4,2386.3,1.79508089]
[1726422506375,6.52883,2386.5,2386.3,1.79508089]
[1726422506576,6.52883,2386.5,2386.2,0.87602427]
[1726422506879,6.52883,2386.5,2386.3,1.79463749]
[1726422507082,6.52883,2386.5,2386.2,0.87602427]
[1726422507414,6.52883,2386.5,2386.3,1.79465283]
[1726422507622,10.71917,2386.5,2386.2,0.87602427]
[1726422507819,10.71917,2386.5,2386.3,1.79469514]
[1726422508122,10.71917,2386.5,2386.2,0.87602427]
[1726422508344,4.19041,2386.4,2386.1,0.87602427]
[1726422508509,6.52883,2386.5,2386.2,1.79416685]
[1726422508834,6.52883,2386.5,2386.3,1.79415845]
[1726422509029,6.52883,2386.5,2386.2,0.87602427]
[1726422509234,6.52883,2386.5,2386.3,1.79413282]
[1726422509444,6.52883,2386.5,2386.1,0.87602427]
[1726422509592,6.52883,2386.5,2386.2,1.79371463]
[1726422509792,6.52883,2386.5,2386.1,1.60174977]
[1726422510335,0.04589493,2386.4,2386.2,1.79371623]
[1726422510507,0.04589493,2386.4,2386.1,1.60174977]
[1726422510710,0.04589493,2386.4,2386.2,2.08480768]
[1726422510893,0.04589493,2386.4,2386.2,0.29157862]
[1726422518553,0.04589493,2386.4,2386.3,4.19058]
[1726422518921,2.4298,2386.7,2386.3,4.19058]
[1726422519221,2.4298,2386.7,2386.2,10.98683862]
[1726422519506,2.4298,2386.7,2386.3,0.75219041]
[1726422519625,2.4298,2386.7,2386.3,5.02657022]
[1726422520264,9.7998,2386.9,2386.3,0.83599022]
[1726422520466,6.61906,2387.1,2386.6,6.50394]
[1726422520619,6.61906,2387.1,2386.6,6.58772957]
[1726422520820,6.61906,2387.1,2386.6,6.58772966]
[1726422521135,6.61906,2387.1,2386.6,7.78753374]
[1726422521721,6.61906,2387.1,2386.6,3.59759374]
[1726422521917,6.61906,2387.1,2386.6,3.51380408]
[1726422522822,2.4298,2387.3,2386.9,4.18952]
[1726422525026,0.04448518,2387.2,2386.9,4.18952]
[1726422525630,0.04445133,2387.1,2386.9,4.18952]
[1726422525832,2.4298,2387.3,2386.9,5.34644743]
[1726422526029,0.04448518,2387.2,2387.0,2.314]
[1726422526223,0.04448518,2387.2,2387.1,0.76604474]
[1726422526429,0.04450238,2387.2,2387.1,0.76604474]
[1726422526741,4.18849,2387.5,2387.1,0.76604474]
[1726422526937,4.18849,2387.5,2386.8,0.87602427]
[1726422526938,0.04442866,2387.2,2386.8,4.18969]
[1726422527161,8.54020039,2387.3,2386.7,11.56958427]
[1726422527481,0.04442866,2387.2,2386.8,2.66421141]
[1726422527684,0.04442866,2387.2,2386.8,5.05908107]
[1726422527854,0.0443948,2387.1,2386.8,5.05908107]
[1726422528060,8.54020039,2387.3,2386.8,5.05908107]
[1726422528262,0.04442866,2387.2,2386.9,1.79520069]
[1726422528562,4.18886,2387.3,2386.8,5.05908107]
[1726422528749,0.0443948,2387.1,2386.9,3.17047799]
[1726422528947,0.04442866,2387.2,2386.9,1.37529217]
[1726422529253,6.61846,2387.4,2386.9,5.56482217]
[1726422529449,2.4298,2387.4,2387.0,4.83344064]
[1726422529654,8.53989039,2387.5,2387.1,2.3612]
[1726422529655,0.04446251,2387.3,2387.1,2.3612]
[1726422529856,4.18855,2387.5,2387.1,2.3612]
[1726422530056,0.04461997,2387.4,2387.3,6.55003]
[1726422530273,7.37,2387.7,2387.3,6.55003]
[1726422530475,0.04480357,2387.6,2387.3,6.55003]
[1726422530822,0.04480357,2387.6,2387.4,1.23343983]
[1726422531497,0.04470563,2387.5,2387.4,1.23343983]
[1726422531654,4.2272161,2387.9,2387.3,6.55003]
[1726422531857,0.04486562,2387.8,2387.3,6.55003]
[1726422532270,0.04486562,2387.8,2387.4,4.27232338]
[1726422532469,0.04486562,2387.8,2387.4,5.84539312]
[1726422532905,0.04486562,2387.8,2387.4,1.65683312]
[1726422533210,0.04486562,2387.8,2387.4,0.08376338]
[1726422533417,0.04486562,2387.8,2387.3,6.54992]
[1726422534112,2.3199,2387.7,2387.3,6.54992]
[1726422534280,0.04479796,2387.6,2387.3,6.54992]
[1726422534472,0.04479796,2387.6,2387.4,0.72693841]
[1726422534701,0.04479796,2387.6,2387.3,6.54992]
[1726422537249,0.04479796,2387.6,2387.2,0.71946406]
[1726422537250,0.04479796,2387.6,2387.4,2.3612]
[1726422537542,0.0448996,2387.5,2387.2,7.26952406]
[1726422537742,0.0448996,2387.5,2387.3,0.94762032]
[1726422538043,4.18808,2387.8,2387.3,5.13643032]
[1726422538244,0.04485106,2387.4,2387.3,5.13643032]
[1726422538398,4.18808,2387.8,2387.3,6.94116877]
[1726422538602,0.04482497,2387.4,2387.3,0.94762032]
[1726422538799,4.18806,2387.8,2387.3,0.94762032]
[1726422539016,0.04482497,2387.4,2387.2,6.55006]
[1726422539265,4.18806,2387.8,2387.2,6.55006]
[1726422539746,4.18806,2387.8,2387.2,10.73896]
[1726422539747,0.04492651,2387.7,2387.2,10.73896]
[1726422539932,0.04492651,2387.7,2387.2,12.03186207]
[1726422540657,2.3199,2387.4,2386.9,5.06545427]
[1726422540814,2.3199,2387.4,2387.0,5.994006]
[1726422541015,0.04489438,2387.3,2387.0,6.16560967]
[1726422541446,0.04489438,2387.3,2386.9,0.87602427]
[1726422541615,4.39623477,2387.3,2386.8,0.87602427]
[1726422541803,0.04489438,2387.3,2386.8,4.18959]
[1726422542002,0.04489438,2387.3,2386.9,2.54752645]
[1726422542245,0.04489438,2387.3,2386.8,0.87602427]
[1726422542246,4.23384438,2387.3,2386.8,0.87602427]
[1726422542541,2.3199,2387.2,2386.7,5.06588427]
[1726422542745,2.3199,2387.2,2386.8,1.80496772]
[1726422542966,2.3199,2387.2,2386.7,6.7748387]
[1726422543248,2.3199,2387.2,2386.8,5.99465166]
[1726422543542,0.04482619,2387.1,2386.7,2.5849787]
[1726422543749,0.04482619,2387.1,2386.6,5.50393641]
[1726422543750,8.58547658,2387.1,2386.6,0.87602427]
[1726422544056,2.3199,2386.9,2386.5,0.87602427]
[1726422544355,0.04470131,2386.8,2386.4,5.06628427]
[1726422544650,0.04470131,2386.8,2386.5,1.80511606]
[1726422544874,0.04470131,2386.8,2386.4,6.44710777]
[1726422544875,4.23443131,2386.8,2386.4,0.87602427]
[1726422545006,4.35134039,2386.5,2386.4,0.87602427]
[1726422545200,4.35134039,2386.5,2386.2,0.87602427]
[1726422545438,8.586182,2386.5,2386.2,0.87602427]
[1726422545708,0.04453867,2386.4,2386.0,1.32629394]
[1726422545921,0.04453867,2386.4,2386.1,1.80536231]
[1726422546125,2.3199,2386.3,2386.0,1.20578264]
[1726422546420,0.04447092,2386.2,2386.0,1.20578264]
[1726422546869,2.3199,2386.3,2386.0,2.08180691]
[1726422547161,2.3199,2386.3,2386.1,1.80528471]
[1726422547346,2.3199,2386.3,2386.0,1.20578264]
[1726422548466,2.3199,2386.3,2386.1,2.43241285]
[1726422548780,2.3199,2386.3,2386.1,0.62730469]
[1726422552672,2.4087,2386.5,2386.1,0.62730469]
[1726422553367,9.7787,2386.8,2386.3,4.19048]
[1726422553574,9.7787,2386.8,2386.4,1.80296635]
[1726422553745,7.37,2386.8,2386.3,5.06650427]
[1726422553927,11.55974,2386.8,2386.4,3.17459884]
[1726422554140,11.55974,2386.8,2386.2,7.52108427]
[1726422554427,11.55974,2386.8,2386.3,1.80313448]
[1726422554628,11.55974,2386.8,2386.2,7.52108427]
[1726422554829,8.37962,2386.8,2386.3,1.8032357]
[1726422555029,4.18974,2386.8,2386.2,8.88642681]
[1726422555257,0.04441667,2386.7,2386.3,1.80322667]
[1726422555440,0.04441667,2386.7,2386.2,8.88641681]
[1726422555768,0.04438281,2386.6,2386.3,3.1263887]
[1726422555934,0.04438281,2386.6,2386.3,1.32320177]
[1726422556136,4.18974,2386.8,2386.3,1.32320177]
[1726422556362,0.04441667,2386.7,2386.3,1.32320177]
[1726422556774,4.18974,2386.8,2386.3,1.32320177]
[1726422556961,0.04438281,2386.6,2386.3,1.32320177]
[1726422557277,0.04441667,2386.7,2386.3,1.32320177]
[1726422557441,0.04434894,2386.5,2386.3,1.32320177]
[1726422557646,4.18974,2386.8,2386.4,1.80343166]
[1726422557851,4.18974,2386.8,2386.4,1.02096186]
[1726422558647,4.18954,2386.9,2386.4,1.02096186]
[1726422559170,4.18954,2386.9,2386.5,1.80348826]
[1726422559376,4.18954,2386.9,2386.4,1.02096186]
[1726422559527,4.18954,2386.9,2386.5,1.80357983]
[1726422559725,4.18954,2386.9,2386.4,1.02096186]
[1726422562964,4.18954,2386.9,2386.5,1.79308709]
[1726422563169,4.18954,2386.9,2386.4,1.02096186]
[1726422563490,4.18954,2386.9,2386.5,1.79322947]
[1726422563653,4.18954,2386.9,2386.4,1.02096186]
[1726422564306,0.55,2386.9,2386.5,1.79327025]
[1726422564507,0.55,2386.9,2386.4,6.08738613]
[1726422564652,0.55,2386.9,2386.5,1.79323639]
[1726422564857,0.55,2386.9,2386.4,6.08738613]
[1726422565054,0.55,2386.9,2386.5,1.7932419]
[1726422565424,0.55,2386.9,2386.4,6.08738613]
[1726422565550,0.55,2386.9,2386.5,1.79334651]
[1726422565871,0.55,2386.9,2386.4,6.08738613]
[1726422566193,0.55,2386.9,2386.5,1.79331429]
[1726422566376,0.55,2386.9,2386.4,6.08738613]
[1726422566552,0.55,2386.9,2386.4,4.1904]
[1726422566553,2.4087,2386.8,2386.4,4.1904]
[1726422566753,2.4087,2386.8,2386.3,0.87602427]
[1726422566954,2.4087,2386.8,2386.4,1.7934421]
[1726422567183,2.4087,2386.8,2386.4,4.19039]
[1726422568252,2.4087,2386.8,2386.3,0.87602427]
[1726422568455,6.5985,2386.8,2386.2,6.43195681]
[1726422568661,6.5985,2386.8,2386.3,1.79337498]
[1726422568860,6.5985,2386.8,2386.2,6.43195681]
[1726422569055,6.5985,2386.8,2386.3,1.79336825]
[1726422569280,6.5985,2386.8,2386.2,6.43195681]
[1726422569611,6.5985,2386.8,2386.3,1.79325873]
[1726422569789,6.5985,2386.8,2386.2,6.43195681]
[1726422570102,4.35134039,2386.5,2386.3,1.79333578]
[1726422570396,4.35134039,2386.5,2386.0,5.06702427]
[1726422570397,0.04273427,2386.4,2386.0,5.06702427]
[1726422570597,0.04273427,2386.4,2386.0,4.191]
[1726422570810,0.04273427,2386.4,2386.0,5.48418407]
[1726422571305,6.55216,2386.6,2386.0,5.48418407]
[1726422571456,2.362,2386.6,2386.2,4.19076]
[1726422571656,0.04301098,2386.5,2386.2,6.55016]
[1726422571883,0.04301098,2386.5,2386.2,7.84119683]
[1726422572374,0.04301098,2386.5,2386.2,3.65043683]
[1726422573002,0.04301098,2386.5,2386.2,7.84109683]
[1726422576817,0.04301098,2386.5,2386.3,4.19057]
[1726422577019,0.04301098,2386.5,2386.4,0.79248111]
[1726422577203,0.04301098,2386.5,2386.4,10.96625997]
[1726422577541,2.362,2386.9,2386.5,4.19017]